bitfinex/quotes_ETHUSD_20220119
["timestamp","ask_amount","ask_price","bid_price","bid_amount"]
[1642615613959,3.685e-05,3145.8,3145.7,5.75076889]
[1642615614159,3.685e-05,3145.8,3145.7,32.63149445]
[1642615614361,3.685e-05,3145.8,3145.7,32.59133626]
[1642615614562,3.685e-05,3145.8,3145.7,35.60611211]
[1642615614758,3.685e-05,3145.8,3145.7,35.60771211]
[1642615614960,3.685e-05,3145.8,3145.7,37.68459866]
[1642615615164,3.685e-05,3145.8,3145.7,37.68939866]
[1642615615360,3.685e-05,3145.8,3145.7,34.66902281]
[1642615615562,3.685e-05,3145.8,3145.7,38.2576499]
[1642615615761,0.7,3146.1,3145.8,25.26587183]
[1642615615964,0.7,3146.1,3146.0,8.06914843]
[1642615616164,0.7,3146.1,3146.0,16.57201844]
[1642615616367,0.7,3146.1,3146.0,15.02220078]
[1642615616837,0.7,3146.1,3146.0,34.3372944]
[1642615617035,0.7,3146.1,3146.0,36.89581206]
[1642615617241,0.7,3146.1,3146.0,37.01581206]
[1642615617436,0.7,3146.1,3146.0,37.01501206]
[1642615617636,0.127,3147.4,3146.3,0.79444]
[1642615617842,0.127,3147.4,3146.5,1.52084866]
[1642615618038,0.00738951,3147.1,3146.6,4.26575759]
[1642615618241,0.00738951,3147.1,3146.7,2.08008655]
[1642615618438,0.00682108,3147.0,3146.8,5.45424217]
[1642615618638,0.00682108,3147.0,3146.9,8.03708655]
[1642615618841,1.50465013,3147.3,3146.9,8.03708655]
[1642615619039,0.127,3147.6,3147.0,3.08008655]
[1642615619239,0.00795793,3147.2,3147.0,6.25683924]
[1642615619438,0.00795793,3147.2,3147.1,5.23008655]
[1642615619639,5.1004,3147.7,3147.1,6.53008655]
[1642615619843,5.1004,3147.7,3147.1,5.53008655]
[1642615620040,1.47254489,3147.4,3147.2,2.08008655]
[1642615620239,1.47254489,3147.4,3147.0,0.457]
[1642615620463,0.00852635,3147.3,3147.1,2.06745604]
[1642615620859,0.13495793,3147.2,3147.1,2.06745604]
[1642615621064,0.13495793,3147.2,3146.1,3.70143435]
[1642615621065,0.13495793,3147.2,3146.1,1.27101705]
[1642615621262,0.13495793,3147.2,3146.2,2.07022501]
[1642615621461,0.00738951,3147.1,3146.2,2.07022501]
[1642615621661,0.127,3147.0,3146.3,2.07022501]
[1642615621864,0.13382108,3147.0,3146.4,2.07022501]
[1642615622061,0.00625266,3146.9,3146.4,2.07022501]
[1642615622261,0.127,3146.8,3146.4,2.07022501]
[1642615622465,0.13268424,3146.8,3146.4,2.07022501]
[1642615622666,0.00511581,3146.7,3146.4,2.07022501]
[1642615622862,0.127,3146.6,3146.4,2.07022501]
[1642615623063,0.00454739,3146.6,3146.4,2.07022501]
[1642615623361,0.127,3146.8,3146.4,2.07022501]
[1642615623362,0.00397896,3146.5,3146.4,2.07022501]
[1642615623765,0.00511581,3146.5,3146.4,5.22889501]
[1642615623963,0.00511581,3146.5,3146.4,6.22889501]
[1642615624204,0.00511581,3146.5,3146.4,6.76956546]
[1642615624610,0.00511581,3146.5,3146.4,9.51956546]
[1642615624810,0.00511581,3146.5,3146.4,12.25531088]
[1642615625211,0.00511581,3146.5,3146.4,12.71231088]
[1642615625711,0.00511581,3146.5,3146.4,9.97656546]
[1642615626612,0.00511581,3146.5,3146.4,10.70766878]
[1642615626812,0.00511581,3146.5,3146.4,10.16699833]
[1642615627011,0.00511581,3146.5,3146.4,7.48027501]
[1642615627615,0.00511581,3146.5,3146.4,3.32160501]
[1642615627811,0.00511581,3146.5,3146.4,2.68589501]
[1642615628055,0.00511581,3146.5,3146.4,7.1866587]
[1642615628256,1.11900575,3147.6,3146.6,6.5444201]
[1642615628458,1.11900575,3147.6,3146.7,2.37022501]
[1642615628755,0.00113685,3146.9,3146.8,2.07022501]
[1642615629558,0.00113685,3146.9,3146.7,2.07022501]
[1642615630162,0.00113685,3146.9,3146.7,2.37022501]
[1642615630359,0.00113685,3146.9,3146.8,6.67214253]
[1642615630658,0.00113685,3146.9,3146.8,9.94821511]
[1642615630859,0.00113685,3146.9,3146.8,10.74256511]
[1642615631705,0.00113685,3146.9,3146.8,12.04256511]
[1642615631905,0.00113685,3146.9,3146.8,9.38216253]
[1642615632107,0.00113685,3146.9,3146.8,9.80916253]
[1642615632504,0.00113685,3146.9,3146.8,12.51162121]
[1642615633505,0.00113685,3146.9,3146.8,9.80916253]
[1642615633706,0.00113685,3146.9,3146.8,2.65422501]
[1642615633908,0.00113685,3146.9,3146.8,2.07022501]
[1642615634109,0.00113685,3146.9,3146.5,0.00161612]
[1642615634913,1.16576724,3146.6,3146.5,0.00161612]
[1642615635317,1.16576724,3146.6,3146.5,0.00275297]
[1642615636163,4.11076391,3146.6,3146.5,0.00275297]
[1642615636563,1.11576724,3146.6,3146.5,0.00275297]
[1642615638063,5.0051,3146.7,3146.5,0.00275297]
[1642615638465,0.00113685,3146.9,3146.5,0.00275297]
[1642615638666,0.00113685,3146.9,3146.5,2.09301034]
[1642615638865,0.00113685,3146.9,3146.6,2.09025737]
[1642615639065,0.00113685,3146.9,3146.7,2.09025737]
[1642615639327,0.00113685,3146.9,3146.5,0.00275297]
[1642615639718,2.82644842,3146.9,3146.5,0.00275297]
[1642615640123,4.99,3146.8,3146.5,0.00275297]
[1642615640318,5.09697368,3146.7,3146.5,0.00275297]
[1642615640524,2.76575573,3146.6,3146.5,0.00275297]
[1642615641420,2.30362362,3146.7,3146.5,0.00275297]
[1642615643105,1.50884362,3146.7,3146.5,0.00275297]
[1642615646508,1.80884362,3146.7,3146.5,0.00275297]
[1642615646707,5.92611557,3146.6,3146.5,0.00275297]
[1642615647313,6.72419159,3146.6,3146.5,0.00275297]
[1642615647515,7.72419159,3146.6,3146.5,0.00275297]
[1642615648013,7.77410159,3146.6,3146.5,0.00275297]
[1642615649712,4.94798602,3146.6,3146.5,0.00275297]
[1642615649914,7.41132838,3146.6,3146.5,0.00275297]
[1642615650461,4.31132838,3146.6,3146.5,0.00275297]
[1642615651265,1.54798602,3146.6,3146.5,0.00275297]
[1642615651467,3.2,3146.5,3145.8,2.03543062]
[1642615651665,3.2,3146.5,3145.7,0.00076889]
[1642615651666,4.2,3146.5,3145.7,0.00076889]
[1642615651865,4.2,3146.5,3145.9,0.00341054]
[1642615652465,1.39276565,3146.0,3145.9,0.00341054]
[1642615653066,1.1909,3146.4,3145.9,0.00341054]
[1642615653268,1.0,3146.3,3145.9,0.00341054]
[1642615653470,1.1909,3146.4,3145.9,0.00341054]
[1642615653666,1.17727,3146.4,3145.9,0.00341054]
[1642615654066,1.16697428,3146.2,3145.9,0.00341054]
[1642615654311,1.16588428,3146.2,3145.9,0.00341054]
[1642615654910,0.3,3146.1,3145.9,0.00341054]
[1642615657112,1.16588428,3146.2,3145.9,0.00341054]
[1642615657713,0.3,3146.1,3145.9,0.00341054]
[1642615658170,1.16588428,3146.2,3145.9,0.00341054]
[1642615658369,0.3,3146.1,3145.9,0.00341054]
[1642615659074,3.94783123,3146.1,3145.9,0.00341054]
[1642615659275,0.3,3146.1,3145.9,0.00341054]
[1642615659472,1.0,3146.0,3145.9,0.00341054]
[1642615659674,3.88650608,3146.0,3145.9,0.00341054]
[1642615660073,1.0,3146.0,3145.9,0.00341054]
[1642615660273,4.1,3146.0,3145.9,0.00341054]
[1642615660475,3.1,3146.0,3145.9,0.00341054]
[1642615660674,1.0,3146.0,3145.9,0.00341054]
[1642615661074,4.1217,3146.1,3145.9,0.00341054]
[1642615661273,1.16588428,3146.2,3145.9,0.00341054]
[1642615661577,2.16588428,3146.2,3145.9,0.00341054]
[1642615662508,3.977,3146.3,3145.9,0.00341054]
[1642615662908,1.17727,3146.4,3145.9,0.00341054]
[1642615664014,2.6953575,3146.5,3145.9,0.00341054]
[1642615664218,5.1047,3146.6,3146.0,1.38515467]
[1642615664615,5.1047,3146.6,3146.1,0.00227369]
[1642615665661,7.87537706,3146.6,3146.1,0.00227369]
[1642615666461,7.87537706,3146.6,3145.8,0.00397896]
[1642615667163,8.67016706,3146.6,3145.8,0.00397896]
[1642615667765,2.43376298,3146.0,3145.8,0.00397896]
[1642615668667,1.26824195,3146.0,3145.8,0.00397896]
[1642615668864,5.89949,3146.6,3145.8,0.00397896]
[1642615669515,0.3,3146.5,3145.8,0.00397896]
[1642615669810,1.19021711,3146.0,3145.8,0.00397896]
[1642615670612,1.19021711,3146.0,3145.8,0.79872736]
[1642615671013,5.1047,3146.6,3145.8,1.09872736]
[1642615671614,5.1047,3146.6,3145.9,2.08432889]
[1642615672018,1.1665372,3146.2,3146.0,0.00284211]
[1642615672616,1.1665372,3146.2,3146.0,2.087171]
[1642615672815,1.1665372,3146.2,3146.0,0.00284211]
[1642615673062,1.1665372,3146.2,3146.1,0.00227369]
[1642615673268,1.51373765,3146.3,3146.0,2.08403296]
[1642615673465,1.51373765,3146.3,3146.0,2.08687507]
[1642615673665,1.51373765,3146.3,3146.1,2.08630665]
[1642615673866,1.51373765,3146.3,3146.1,0.00227369]
[1642615674065,1.51373765,3146.3,3146.2,0.00170527]
[1642615674264,5.1047,3146.6,3146.0,2.08626937]
[1642615674466,5.1047,3146.6,3146.1,0.00227369]
[1642615674669,0.5023567,3146.5,3146.1,0.00227369]
[1642615675065,5.1047,3146.6,3146.1,0.00227369]
[1642615675266,1.2658989,3146.3,3146.1,0.00227369]
[1642615678613,0.50376747,3146.2,3146.1,0.00227369]
[1642615679617,0.50376747,3146.2,3145.8,2.08740622]
[1642615680116,0.50376747,3146.2,3145.9,2.08342726]
[1642615680318,0.50376747,3146.2,3146.0,2.08342726]
[1642615680588,0.50376747,3146.2,3146.0,0.00284211]
[1642615680775,0.50376747,3146.2,3146.1,0.00227369]
[1642615680977,4.45376747,3146.2,3146.1,0.00227369]
[1642615681174,7.26670951,3146.2,3146.1,0.00227369]
[1642615681381,7.26670951,3146.2,3146.0,2.09273196]
[1642615681382,7.26670951,3146.2,3146.0,0.00284211]
[1642615681577,7.26670951,3146.2,3145.7,0.00076889]
[1642615681578,7.86878954,3146.1,3145.7,0.00076889]
[1642615681776,0.50376747,3146.0,3145.7,2.09388462]
[1642615681977,1.47529335,3145.8,3145.7,2.09388462]
[1642615682177,1.97906082,3145.8,3145.7,2.09388462]
[1642615682380,4.723627,3145.8,3145.7,0.00531627]
[1642615682578,3.1643184,3145.8,3145.7,0.00531627]
[1642615683677,5.91571111,3145.8,3145.7,0.00531627]
[1642615684314,3.1643184,3145.8,3145.7,0.00531627]
[1642615685613,4.1643184,3145.8,3145.7,0.00531627]
[1642615685814,7.09480613,3145.8,3145.7,0.00531627]
[1642615686818,4.1643184,3145.8,3145.7,0.00531627]
[1642615687419,9.0788184,3145.8,3145.7,0.00531627]
[1642615688865,9.3788184,3145.8,3145.7,0.00531627]
[1642615689971,9.0788184,3145.8,3145.7,0.00531627]
[1642615690770,11.88986212,3145.8,3145.7,0.00531627]
[1642615691368,11.79934101,3145.8,3145.7,0.00531627]
[1642615693422,9.0788184,3145.8,3145.7,0.00531627]
[1642615693624,12.09652469,3145.8,3145.7,0.00531627]
[1642615693825,11.79652469,3145.8,3145.7,0.00531627]
[1642615694224,11.84643469,3145.8,3145.7,0.00531627]
[1642615694625,11.79652469,3145.8,3145.7,0.00531627]
[1642615694826,11.84643469,3145.8,3145.7,0.00531627]
[1642615695665,11.79652469,3145.8,3145.7,0.00531627]
[1642615695868,12.09652469,3145.8,3145.7,0.00531627]
[1642615696772,9.0788184,3145.8,3145.7,0.00531627]
[1642615696971,1.47529335,3145.8,3145.7,0.00531627]
[1642615697170,3.6884,3146.1,3145.7,0.00531627]
[1642615697369,0.5443312,3146.0,3145.7,0.00531627]
[1642615697570,0.5443312,3146.0,3145.8,0.00397896]
[1642615698171,4.53168545,3145.9,3145.8,0.00397896]
[1642615698369,1.67601665,3145.9,3145.8,0.00397896]
[1642615699220,3.08247303,3145.9,3145.8,0.00397896]
[1642615699825,3.38247303,3145.9,3145.8,0.00397896]
[1642615700230,4.38247303,3145.9,3145.8,0.00397896]
[1642615700434,8.48539152,3145.9,3145.8,0.00397896]
[1642615701827,8.53530152,3145.9,3145.8,0.00397896]
[1642615703666,5.63358303,3145.9,3145.8,0.00397896]
[1642615704270,4.58367303,3145.9,3145.8,0.00397896]
[1642615704468,4.28367303,3145.9,3145.8,0.00397896]
[1642615705673,3.73934183,3145.9,3145.8,0.00397896]
[1642615705869,4.28477907,3145.9,3145.8,0.00397896]
[1642615708521,7.02624177,3145.9,3145.8,0.00397896]
[1642615708722,8.07615177,3145.9,3145.8,0.00397896]
[1642615708920,8.02624177,3145.9,3145.8,0.00397896]
[1642615709218,5.28477907,3145.9,3145.8,0.00397896]
[1642615709420,8.37944553,3145.9,3145.8,0.00397896]
[1642615710019,5.63468907,3145.9,3145.8,0.00397896]
[1642615710222,8.40177381,3145.9,3145.8,0.00397896]
[1642615710474,8.40177381,3145.9,3145.7,0.00076889]
[1642615710475,5.75,3145.8,3145.7,0.00076889]
[1642615710673,10.12070706,3145.8,3144.5,0.09047365]
[1642615710876,10.12070706,3145.8,3144.6,2.05126069]
[1642615710877,5.37833724,3145.7,3144.6,2.05126069]
[1642615711073,0.79522,3145.5,3144.7,2.05126069]
[1642615711373,1.46965959,3145.3,3144.7,2.05126069]
[1642615711578,1.46965959,3145.3,3144.8,0.00568423]
[1642615711579,2.13597724,3145.2,3144.8,0.00568423]
[1642615711775,3.47109517,3145.1,3144.8,0.00568423]
[1642615711974,0.54543724,3145.0,3144.8,0.00568423]
[1642615712174,7.41587227,3144.9,3144.2,0.00909477]
[1642615712374,7.41587227,3144.9,3144.3,2.05304392]
[1642615712375,0.79531,3144.8,3144.3,2.05304392]
[1642615712575,1.34257583,3144.6,3144.3,2.05304392]
[1642615712777,1.34257583,3144.6,3144.4,2.06100185]
[1642615712778,2.63401241,3144.6,3144.4,2.06100185]
[1642615712977,2.63401241,3144.6,3144.5,2.05304392]
[1642615713279,6.23343456,3144.6,3144.5,0.0073895]
[1642615713482,5.45,3144.5,3143.3,1.52084866]
[1642615713676,7.28334456,3144.6,3143.3,1.52084866]
[1642615713677,4.80388893,3144.4,3143.3,2.05236222]
[1642615713875,4.80388893,3144.4,3143.5,0.00568424]
[1642615714077,4.80388893,3144.4,3143.6,2.05236222]
[1642615714342,2.79511145,3143.8,3143.6,2.05236222]
[1642615714547,1.4167456,3143.8,3143.7,2.05690961]
[1642615714942,4.959,3144.3,3143.7,2.05690961]
[1642615714943,1.0,3144.2,3143.7,2.05690961]
[1642615715143,1.0,3144.2,3143.8,2.05236222]
[1642615715347,1.0,3144.2,3143.9,2.05236222]
[1642615715645,1.0,3144.2,3144.0,2.05236222]
[1642615715845,4.959,3144.3,3144.1,2.05236222]
[1642615716051,4.959,3144.3,3144.2,2.05236222]
[1642615716246,2.62658514,3144.4,3144.2,2.05236222]
[1642615716247,2.62658514,3144.4,3144.2,0.00170527]
[1642615716646,2.62658514,3144.4,3143.9,2.05085225]
[1642615716845,2.62658514,3144.4,3144.0,2.05028382]
[1642615717046,2.62658514,3144.4,3144.1,2.0474417]
[1642615717246,2.62658514,3144.4,3144.1,2.0497154]
[1642615717447,2.62658514,3144.4,3144.2,2.04914697]
[1642615717649,2.62658514,3144.4,3144.2,0.00170527]
[1642615717849,2.62658514,3144.4,3143.8,1.0952974]
[1642615717850,2.62658514,3144.4,3144.3,0.00113685]
[1642615718093,3.62658514,3144.4,3143.9,2.05113873]
[1642615718292,2.62658514,3144.4,3144.0,0.00284212]
[1642615720297,2.62658514,3144.4,3143.9,2.04772818]
[1642615720497,2.62658514,3144.4,3144.0,2.04772818]
[1642615720698,2.62658514,3144.4,3144.0,2.0505703]
[1642615720897,2.62658514,3144.4,3144.1,2.05000188]
[1642615721097,2.62658514,3144.4,3144.1,0.0022737]
[1642615721302,2.62658514,3144.4,3144.2,0.00170527]
[1642615721303,1.25862408,3144.4,3144.2,0.00170527]
[1642615721497,1.25862408,3144.4,3143.8,2.04567252]
[1642615721714,1.25862408,3144.4,3143.8,2.04965149]
[1642615721918,1.25862408,3144.4,3143.9,2.04908307]
[1642615722117,1.25862408,3144.4,3144.0,2.04567252]
[1642615722317,1.25862408,3144.4,3144.1,2.04567252]
[1642615722521,1.25862408,3144.4,3144.2,2.04259457]
[1642615722717,1.25862408,3144.4,3144.2,0.00170527]
[1642615722917,1.17088938,3144.5,3144.3,0.00113685]
[1642615723119,1.17088938,3144.5,3144.1,2.04655702]
[1642615723316,1.17088938,3144.5,3144.2,0.00170527]
[1642615723928,1.17088938,3144.5,3144.2,2.04598859]
[1642615724124,1.17088938,3144.5,3144.2,0.00170527]
[1642615724324,1.17088938,3144.5,3144.3,0.00113685]
[1642615724524,1.17088938,3144.5,3144.2,0.00170527]
[1642615724724,1.17088938,3144.5,3143.8,2.04812257]
[1642615724925,2.17088938,3144.5,3143.9,2.04755415]
[1642615725125,1.17088938,3144.5,3144.0,2.0441436]
[1642615725326,1.17088938,3144.5,3144.1,2.0441436]
[1642615725565,1.17088938,3144.5,3144.2,2.0441436]
[1642615725766,1.17088938,3144.5,3144.2,0.00170527]
[1642615725969,1.17088938,3144.5,3144.3,0.00113685]
[1642615726266,1.17088938,3144.5,3143.9,0.00341055]
[1642615726267,2.17088938,3144.5,3143.9,0.00341055]
[1642615726471,1.17088938,3144.5,3143.9,0.00341055]
[1642615726669,2.17088938,3144.5,3143.9,0.00341055]
[1642615727068,2.17088938,3144.5,3143.9,0.79869465]
[1642615727270,2.17088938,3144.5,3144.0,2.04648424]
[1642615727468,2.17088938,3144.5,3144.0,2.04932636]
[1642615727670,2.17088938,3144.5,3144.1,0.0022737]
[1642615727870,2.17088938,3144.5,3144.1,2.04875794]
[1642615728071,2.17088938,3144.5,3144.1,0.0022737]
[1642615728273,11.2629,3144.7,3144.2,0.00170527]
[1642615728477,11.2629,3144.7,3144.1,4.2994099]
[1642615728478,10.1247,3144.7,3144.1,4.2994099]
[1642615728675,10.1247,3144.7,3144.2,2.04567651]
[1642615728874,10.1247,3144.7,3144.3,2.04397124]
[1642615729078,10.1247,3144.7,3144.3,2.34510809]
[1642615729323,2.857475,3145.0,3144.4,2.04397124]
[1642615729722,2.86031711,3145.0,3144.4,2.04397124]
[1642615730624,2.86031711,3145.0,3144.4,2.83907544]
[1642615730824,2.86031711,3145.0,3144.5,2.04397124]
[1642615731127,2.86031711,3145.0,3144.6,2.04397124]
[1642615731324,2.86031711,3145.0,3144.5,0.3]
[1642615731729,2.86031711,3145.0,3144.6,2.04023876]
[1642615733171,2.86031711,3145.0,3144.5,0.3]
[1642615733370,0.00284211,3145.0,3144.5,0.3]
[1642615733571,0.00284211,3145.0,3144.6,2.04099214]
[1642615733976,0.00284211,3145.0,3144.6,2.83607434]
[1642615734176,0.00284211,3145.0,3144.7,2.04099214]
[1642615734381,0.00284211,3145.0,3144.7,2.34099214]
[1642615734676,0.00284211,3145.0,3144.8,2.04099214]
[1642615739827,0.00284211,3145.0,3144.9,7.24099214]
[1642615740029,0.00284211,3145.0,3144.9,7.57463175]
[1642615740226,0.00284211,3145.0,3144.9,8.03330175]
[1642615740465,0.00284211,3145.0,3144.9,8.16030175]
[1642615740667,0.54894961,3146.1,3145.0,5.78718151]
[1642615740867,1.32995633,3145.9,3145.3,1.42549889]
[1642615741067,1.32995633,3145.9,3145.3,3.65431437]
[1642615741272,1.32995633,3145.9,3145.4,2.04099214]
[1642615741476,1.32995633,3145.9,3145.5,2.04099214]
[1642615741671,1.32995633,3145.9,3145.3,0.3]
[1642615741872,0.55566597,3145.8,3145.3,0.3]
[1642615742075,0.55566597,3145.8,3145.2,1.8895183]
[1642615742272,0.00397897,3145.7,3145.2,0.3]
[1642615742671,0.00341054,3145.6,3145.1,0.3]
[1642615743076,0.55070871,3145.8,3145.1,0.3]
[1642615743077,0.00284212,3145.5,3145.1,0.3]
[1642615743274,2.48380317,3145.4,3145.2,2.0354189]
[1642615743474,2.48607687,3145.4,3145.1,0.3]
[1642615743674,0.00170527,3145.3,3145.2,2.03574951]
[1642615745225,0.00170527,3145.3,3145.2,2.03536977]
[1642615745821,0.00170527,3145.3,3145.1,1.0949079]
[1642615746227,0.00113685,3145.2,3145.1,1.0949079]
[1642615746426,0.00113685,3145.2,3145.1,3.12716348]
[1642615746624,0.00113685,3145.2,3145.1,2.82716348]
[1642615746825,0.00113685,3145.2,3145.1,0.7949079]
[1642615747627,0.00113685,3145.2,3145.1,2.81766735]
[1642615747826,0.00113685,3145.2,3145.0,1.5898351]
[1642615748105,0.00113685,3145.2,3144.6,0.3]
[1642615748302,0.00113685,3145.2,3144.7,2.02570507]
[1642615748500,0.00113685,3145.2,3144.7,0.30170527]
[1642615748700,0.00113685,3145.2,3144.8,0.00113684]
[1642615749099,0.00113685,3145.2,3144.5,2.02674691]
[1642615749100,1.35413234,3145.2,3144.5,2.02674691]
[1642615749299,1.35413234,3145.2,3144.5,0.00284211]
[1642615749300,0.55774549,3145.1,3144.5,0.00284211]
[1642615749500,0.55774549,3145.1,3144.6,0.00227369]
[1642615749806,6.01158685,3145.2,3144.3,0.7951643]
[1642615749807,1.12953324,3144.8,3144.3,0.7951643]
[1642615750002,1.12953324,3144.8,3144.4,2.32833145]
[1642615750201,5.21633685,3145.2,3144.5,2.02833145]
[1642615750402,5.21633685,3145.2,3144.5,2.03117356]
[1642615750703,5.21633685,3145.2,3144.6,2.03060514]
[1642615750904,5.21633685,3145.2,3144.7,2.02833145]
[1642615751102,5.21633685,3145.2,3144.7,2.33003672]
[1642615751304,2.82599021,3145.0,3144.8,2.02946829]
[1642615751504,1.30278044,3145.0,3144.8,2.02946829]
[1642615752632,1.30278044,3145.0,3144.8,0.00113684]
[1642615753232,6.15783523,3144.9,3144.8,0.00113684]
[1642615753632,6.15783523,3144.9,3144.7,0.00170527]
[1642615753633,7.15783523,3144.9,3144.7,0.00170527]
[1642615753833,7.15783523,3144.9,3144.2,2.02908188]
[1642615753834,4.50783523,3144.8,3144.3,2.02908188]
[1642615754033,4.50783523,3144.8,3144.3,2.03306084]
[1642615754233,1.32750892,3144.7,3144.4,0.00341054]
[1642615754437,1.45366618,3144.6,3144.4,2.03249242]
[1642615754637,1.45366618,3144.6,3144.5,2.02908188]
[1642615754845,1.45366618,3144.6,3144.5,0.00284211]
[1642615755237,1.45366618,3144.6,3144.2,0.00454738]
[1642615755469,1.45366618,3144.6,3144.3,2.02908188]
[1642615755669,1.45366618,3144.6,3144.3,2.32908188]
[1642615755870,1.45366618,3144.6,3144.4,2.03249242]
[1642615756170,1.45366618,3144.6,3144.5,2.03192399]
[1642615758275,1.45366618,3144.6,3144.5,0.00284211]
[1642615758276,7.82736719,3144.6,3144.5,0.00284211]
[1642615758475,8.82736719,3144.6,3144.5,0.00284211]
[1642615758873,8.82736719,3144.6,3143.5,1.98465802]
[1642615758874,9.28436719,3144.6,3143.6,1.98465802]
[1642615759074,0.5596688,3144.5,3143.6,1.99261595]
[1642615759350,1.20202294,3143.7,3143.3,7.32]
[1642615759550,1.94372294,3143.7,3143.3,7.32]
[1642615759746,1.94372294,3143.7,3143.4,0.00909477]
[1642615759946,2.94372294,3143.7,3143.4,0.00909477]
[1642615760547,1.26501969,3143.5,3143.4,0.00909477]
[1642615760748,2.20202294,3143.7,3143.4,0.00909477]
[1642615760954,0.50691,3144.2,3143.4,0.00909477]
[1642615761149,0.63753786,3144.1,3143.4,0.80454737]
[1642615761351,13.914,3144.3,3143.4,0.80454737]
[1642615761550,0.63998709,3144.2,3143.5,0.00852635]
[1642615761749,10.8742,3144.9,3143.5,0.00852635]
[1642615761750,1.24179484,3144.6,3143.5,0.00852635]
[1642615761950,10.8742,3144.9,3143.9,1.46414281]
[1642615761951,1.10046872,3144.5,3143.9,1.46414281]
[1642615762349,1.10046872,3144.5,3144.0,0.00568423]
[1642615762970,0.6078146,3144.4,3144.0,0.00568423]
[1642615763574,0.6078146,3144.4,3143.5,0.00852635]
[1642615763775,2.33352014,3143.7,3143.5,0.00852635]
[1642615765281,1.23594312,3143.7,3143.5,0.00852635]
[1642615768130,2.1747,3144.3,3143.5,0.00852635]
[1642615768331,2.1747,3144.3,3143.6,1.5906485]
[1642615768829,2.50230687,3144.3,3143.7,0.3073895]
[1642615769033,1.32760687,3144.3,3143.7,0.3073895]
[1642615769231,1.11794874,3144.2,3143.8,0.00682108]
[1642615769830,1.11794874,3144.2,3143.7,0.0073895]
[1642615770032,1.11794874,3144.2,3143.5,0.80395105]
[1642615770231,1.11794874,3144.2,3143.6,0.00795793]
[1642615770472,0.79548,3144.1,3143.6,0.00795793]
[1642615770668,1.11794874,3144.2,3143.5,0.00852635]
[1642615770871,1.11794874,3144.2,3143.5,0.80393545]
[1642615771270,1.11794874,3144.2,3143.6,0.00795793]
[1642615772073,1.11794874,3144.2,3143.6,1.89860703]
[1642615772276,1.11794874,3144.2,3143.6,1.59860703]
[1642615772477,1.11794874,3144.2,3143.7,0.3073895]
[1642615772876,1.11794874,3144.2,3143.8,0.00682108]
[1642615773277,1.11794874,3144.2,3143.8,0.30682108]
[1642615773479,1.11794874,3144.2,3143.8,0.00682108]
[1642615773678,2.11794874,3144.2,3143.9,0.00625266]
[1642615773877,1.11794874,3144.2,3143.6,0.00795793]
[1642615774528,1.11794874,3144.2,3143.7,1.93728749]
[1642615774728,1.11794874,3144.2,3143.8,0.7953538]
[1642615774928,1.11794874,3144.2,3143.8,0.80217488]
[1642615775230,1.11794874,3144.2,3143.9,0.00625266]
[1642615776831,1.11794874,3144.2,3143.6,0.00795793]
[1642615777434,1.11794874,3144.2,3143.6,0.3]
[1642615777634,1.11794874,3144.2,3143.6,0.30795793]
[1642615777985,1.11794874,3144.2,3143.7,0.0073895]
[1642615778976,1.11794874,3144.2,3143.6,0.00795793]
[1642615779579,1.11794874,3144.2,3143.2,2.81566872]
[1642615779580,1.11794874,3144.2,3143.3,0.0096632]
[1642615779779,0.79544,3144.1,3143.4,1.94041286]
[1642615779980,0.79544,3144.1,3143.4,2.24041286]
[1642615780180,0.79544,3144.1,3143.5,0.00852635]
[1642615780785,1.45136928,3143.8,3143.5,0.00852635]
[1642615780980,1.45136928,3143.8,3143.3,0.0096632]
[1642615781181,1.2311,3144.2,3143.7,1.27947561]
[1642615781385,3.6487,3144.7,3143.8,2.6731818]
[1642615781583,3.6487,3144.7,3143.8,2.68000288]
[1642615781830,5.0647,3144.8,3143.9,1.94056741]
[1642615782131,5.0647,3144.8,3144.0,4.94466023]
[1642615782328,5.0647,3144.8,3144.1,1.93431475]
[1642615782329,6.16253995,3144.8,3144.1,1.93431475]
[1642615782528,7.47295394,3144.8,3144.3,1.22996757]
[1642615782728,6.37511399,3144.8,3144.3,1.22996757]
[1642615782930,6.37511399,3144.8,3144.4,0.00341054]
[1642615783333,5.0647,3144.8,3144.4,0.00341054]
[1642615786979,1.30150494,3144.7,3144.4,0.00341054]
[1642615787379,1.30150494,3144.7,3144.4,0.30341054]
[1642615787578,1.30150494,3144.7,3144.3,0.00397896]
[1642615787779,1.30150494,3144.7,3144.5,0.00284211]
[1642615787979,5.0647,3144.8,3144.3,0.00397896]
[1642615788180,4.9038,3144.9,3144.3,0.00397896]
[1642615788382,4.9038,3144.9,3144.3,2.70183701]
[1642615788685,4.9038,3144.9,3144.5,0.7950532]
[1642615788881,0.04772631,3145.2,3144.5,1.0950532]
[1642615789225,0.64254643,3145.1,3144.6,1.16944345]
[1642615789429,0.64254643,3145.1,3144.6,1.46944345]
[1642615789629,0.64254643,3145.1,3144.7,0.00170527]
[1642615789935,0.64254643,3145.1,3144.7,1.09673067]
[1642615790431,0.64254643,3145.1,3144.8,0.00113684]
[1642615791238,1.2002,3145.5,3144.8,1.59103784]
[1642615791436,6.34400397,3145.8,3144.8,1.89103784]
[1642615791437,0.64289443,3145.4,3144.8,1.89103784]
[1642615791633,0.0022737,3145.4,3144.9,0.457]
[1642615792033,0.0022737,3145.4,3144.9,1.55188]
[1642615792234,0.0022737,3145.4,3145.0,0.7949307]
[1642615792435,0.0022737,3145.4,3145.0,1.0949307]
[1642615792633,0.0022737,3145.4,3145.1,0.3]
[1642615792996,0.0022737,3145.4,3145.1,1.404]
[1642615793393,0.64513182,3145.4,3145.1,1.404]
[1642615793595,0.0022737,3145.4,3145.1,1.404]
[1642615794598,0.0022737,3145.4,3145.1,0.3]
[1642615795400,0.0022737,3145.4,3144.9,0.757]
[1642615795600,1.38509929,3145.1,3144.9,0.757]
[1642615795800,1.38509929,3145.1,3144.8,0.00113684]
[1642615796102,1.33509929,3145.1,3144.8,0.00113684]
[1642615796307,1.33509929,3145.1,3144.7,0.00170527]
[1642615797332,1.33509929,3145.1,3144.7,1.93244327]
[1642615797732,1.33509929,3145.1,3144.8,0.00113684]
[1642615798633,1.33509929,3145.1,3144.7,0.79670757]
[1642615798837,1.33509929,3145.1,3144.8,0.00113684]
[1642615799636,1.33509929,3145.1,3144.7,0.00170527]
[1642615799837,1.33509929,3145.1,3144.7,1.85610149]
[1642615800038,1.33509929,3145.1,3144.7,2.65110329]
[1642615800339,1.33509929,3145.1,3144.8,0.00113684]
[1642615800578,0.0022737,3145.4,3144.8,0.00113684]
[1642615800979,0.0022737,3145.4,3144.8,2.15749859]
[1642615801179,0.0022737,3145.4,3144.9,1.5897257]
[1642615801384,0.0022737,3145.4,3144.9,0.457]
[1642615801682,0.0022737,3145.4,3144.9,2.04669]
[1642615801883,0.0022737,3145.4,3145.2,1.47927115]
[1642615802083,0.0022737,3145.4,3145.3,0.3]